fUST/lending_fUST_20250602
["ID","MTS","AMOUNT","RATE_DAILY","PERIOD"]
[363698505,1748823034398,-430.0,0.00018267,2]
[363698506,1748823034407,-430.0,0.00018267,2]
[363698507,1748823034417,-430.0,0.00018267,2]
[363698508,1748823034427,-430.0,0.00018267,2]
[363698509,1748823034436,-430.0,0.00018267,2]
[363698510,1748823034446,-500.0,0.00018267,2]
[363698511,1748823034455,-621.81377739,0.00018267,2]
[363698512,1748823034465,-492.2646724,0.00018267,2]
[363698513,1748823034474,-430.0,0.00018268,2]
[363698514,1748823034484,-430.0,0.00018268,2]
[363698515,1748823034494,-450.0,0.00018268,2]
[363698516,1748823034503,-430.0,0.00018268,2]
[363698517,1748823034513,-430.0,0.00018268,2]
[363698518,1748823034522,-430.0,0.00018268,2]
[363698519,1748823034532,-430.0,0.00018268,2]
[363698520,1748823034542,-430.0,0.00018268,2]
[363698521,1748823034551,-430.0,0.00018268,2]
[363698522,1748823034561,-430.0,0.00018268,2]
[363698523,1748823034571,-440.64514429,0.00018268,2]
[363698524,1748823034580,-430.0,0.00018268,2]
[363698525,1748823034591,-430.0,0.00018268,2]
[363698526,1748823034600,-430.0,0.00018268,2]
[363698527,1748823034609,-430.0,0.00018268,2]
[363698528,1748823034619,-430.0,0.00018268,2]
[363698529,1748823034628,-430.0,0.00018268,2]
[363698530,1748823034637,-430.0,0.00018268,2]
[363698531,1748823034648,-430.0,0.00018268,2]
[363698532,1748823034657,-963.95,0.00018268,2]
[363698533,1748823034667,-1000.0,0.00018268,2]
[363698534,1748823034676,-430.0,0.00018268,2]
[363698535,1748823034686,-430.0,0.00018268,2]
[363698536,1748823034695,-430.0,0.00018268,2]
[363698537,1748823034705,-567.47,0.00018268,2]
[363698538,1748823034714,-430.0,0.00018268,2]
[363698539,1748823034724,-430.0,0.00018268,2]
[363698540,1748823034733,-430.0,0.00018268,2]
[363698541,1748823034743,-430.0,0.00018268,2]
[363698542,1748823034752,-430.0,0.00018268,2]
[363698543,1748823034762,-570.0,0.00018268,2]
[363698544,1748823034772,-430.0,0.00018268,2]
[363698545,1748823034782,-430.0,0.00018268,2]
[363698546,1748823034791,-430.0,0.0001834,2]
[363698547,1748823034800,-700.17,0.0001834,2]
[363698548,1748823034810,-740.97,0.0001834,2]
[363698549,1748823034819,-698.97,0.0001834,2]
[363698550,1748823034830,-430.0,0.0001834,2]
[363698551,1748823034840,-1125.89,0.0001834,2]
[363698552,1748823034850,-812.58,0.0001834,2]
[363698553,1748823034860,-420.0,0.00018432,2]
[363698554,1748823034870,-420.0,0.00018432,2]
[363698555,1748823034880,-2082.78383886,0.00018442,2]
[363698556,1748823034889,-776.52,0.00018541,2]
[363698557,1748823034901,-430.0,0.00018541,2]
[363698558,1748823034911,-430.0,0.00018541,2]
[363698559,1748823034921,-430.0,0.00018541,2]
[363698560,1748823034931,-430.0,0.00018541,2]
[363698561,1748823034940,-431.25,0.00018541,2]
[363698562,1748823034949,-430.0,0.00018541,2]
[363698563,1748823034959,-430.0,0.00018541,2]
[363698564,1748823034968,-430.0,0.00018541,2]
[363698565,1748823034979,-430.0,0.00018541,2]
[363698566,1748823034989,-430.0,0.00018541,2]
[363698567,1748823034998,-430.0,0.00018541,2]
[363698568,1748823035007,-430.0,0.00018541,2]
[363698569,1748823035019,-459.11,0.00018541,2]
[363698570,1748823035031,-430.0,0.00018541,2]
[363698571,1748823035040,-430.0,0.00018541,2]
[363698572,1748823035052,-430.0,0.00018541,2]
[363698573,1748823035063,-977.45,0.00018541,2]
[363698574,1748823035072,-430.0,0.00018541,2]
[363698575,1748823035081,-430.0,0.00018541,2]
[363698576,1748823035095,-430.0,0.00018541,2]
[363698577,1748823035105,-430.0,0.00018541,2]
[363698578,1748823035114,-430.0,0.00018541,2]
[363698579,1748823035124,-430.0,0.00018542,2]
[363698580,1748823035136,-430.0,0.00018542,2]
[363698581,1748823035146,-468.22,0.00018542,2]
[363698582,1748823035156,-430.0,0.00018542,2]
[363698583,1748823035167,-430.0,0.00018542,2]
[363698584,1748823035177,-430.0,0.00018542,2]
[363698585,1748823035188,-430.0,0.00018542,2]
[363698586,1748823035197,-430.0,0.00018542,2]
[363698587,1748823035208,-430.0,0.00018542,2]
[363698588,1748823035217,-430.0,0.00018542,2]
[363698589,1748823035229,-430.0,0.00018542,2]
[363698590,1748823035239,-430.0,0.00018542,2]
[363698591,1748823035249,-430.0,0.00018542,2]
[363698592,1748823035258,-430.0,0.00018542,2]
[363698593,1748823035268,-963.95,0.00018542,2]
[363698594,1748823035278,-430.0,0.00018542,2]
[363698595,1748823035287,-567.47,0.00018542,2]
[363698596,1748823035296,-430.0,0.00018542,2]
[363698597,1748823035306,-430.0,0.00018542,2]
[363698598,1748823035316,-430.0,0.00018542,2]
[363698599,1748823035325,-430.0,0.00018542,2]
[363698600,1748823035335,-430.0,0.00018542,2]
[363698601,1748823035344,-430.0,0.00018542,2]
[363698602,1748823035353,-430.0,0.00018614,2]
[363698603,1748823035363,-700.17,0.00018614,2]
[363698604,1748823035372,-740.97,0.00018614,2]
[363698605,1748823035382,-698.97,0.00018614,2]
[363698606,1748823035392,-1125.89,0.00018614,2]
[363698607,1748823035403,-812.58,0.00018614,2]
[363698608,1748823035412,-150.25210295,0.00018658,2]
[363698609,1748823035422,-500.0,0.00018688,2]
[363698610,1748823035434,-832.66,0.00018717,2]
[363698611,1748823035445,-500.0,0.00018718,2]
[363698612,1748823035454,-500.0,0.00018718,2]
[363698613,1748823035465,-500.0,0.00018718,2]
[363698614,1748823035474,-500.0,0.00018764,2]
[363698615,1748823035484,-776.52,0.00018815,2]
[363698616,1748823035493,-430.0,0.00018815,2]
[363698617,1748823035503,-430.0,0.00018815,2]
[363698618,1748823035512,-430.0,0.00018815,2]
[363698619,1748823035522,-430.0,0.00018815,2]
[363698620,1748823035531,-431.25,0.00018815,2]
[363698621,1748823035541,-430.0,0.00018815,2]
[363698622,1748823035552,-430.0,0.00018815,2]
[363698623,1748823035561,-430.0,0.00018815,2]
[363698624,1748823035571,-430.0,0.00018815,2]
[363698625,1748823035580,-430.0,0.00018815,2]
[363698626,1748823035590,-430.0,0.00018815,2]
[363698627,1748823035599,-430.0,0.00018815,2]
[363698628,1748823035608,-430.0,0.00018815,2]
[363698629,1748823035618,-430.0,0.00018815,2]
[363698630,1748823035628,-430.0,0.00018815,2]
[363698631,1748823035637,-977.45,0.00018815,2]
[363698632,1748823035646,-430.0,0.00018815,2]
[363698633,1748823035655,-430.0,0.00018815,2]
[363698634,1748823035665,-430.0,0.00018815,2]
[363698635,1748823035674,-430.0,0.00018815,2]
[363698636,1748823035684,-430.0,0.00018815,2]
[363698637,1748823035694,-375.54840054,0.00018816,2]
[363698638,1748823035703,-430.0,0.00018816,2]
[363698639,1748823035713,-430.0,0.00018816,2]
[363698640,1748823035722,-430.0,0.00018816,2]
[363698641,1748823035732,-430.0,0.00018816,2]
[363698642,1748823035742,-430.0,0.00018816,2]
[363698643,1748823035751,-430.0,0.00018816,2]
[363698644,1748823035761,-430.0,0.00018816,2]
[363698645,1748823035771,-430.0,0.00018816,2]
[363698646,1748823035780,-430.0,0.00018816,2]
[363698647,1748823035790,-430.0,0.00018816,2]
[363698648,1748823035801,-430.0,0.00018816,2]
[363698649,1748823035811,-430.0,0.00018816,2]
[363698650,1748823035820,-963.95,0.00018816,2]
[363698651,1748823035830,-430.0,0.00018816,2]
[363698652,1748823035842,-567.47,0.00018816,2]
[363698653,1748823035851,-430.0,0.00018816,2]
[363698654,1748823035860,-430.0,0.00018816,2]
[363698655,1748823035869,-450.0,0.00018816,2]
[363698656,1748823035878,-430.0,0.00018816,2]
[363698657,1748823035887,-430.0,0.00018816,2]
[363698658,1748823035897,-500.0,0.00018827,2]
[363698659,1748823035907,-437.28126419,0.00018827,2]
[363698660,1748823035917,-500.0,0.00018827,2]
[363698661,1748823035926,-430.0,0.00018888,2]
[363698662,1748823035936,-700.17,0.00018888,2]
[363698663,1748823035946,-740.97,0.00018888,2]
[363698664,1748823035955,-698.97,0.00018888,2]
[363698665,1748823035965,-1125.89,0.00018888,2]
[363698666,1748823035975,-812.58,0.00018888,2]
[363698667,1748823035984,-160.0,0.00018913,2]
[363698668,1748823035994,-212.80060342,0.00018914,2]
[363698669,1748823036003,-229.3709046,0.00018914,2]
[363698670,1748823036013,-160.0,0.00018914,2]
[363698671,1748823036022,-842.5625,0.00018914,2]
[363698672,1748823036032,-423.51412927,0.00018914,2]
[363698673,1748823036042,-12666.87825251,0.00018914,2]
[363698674,1748823036051,-314.88098828,0.00018914,2]
[363698675,1748823036062,-160.0,0.00018914,2]
[363698676,1748823036072,-160.0,0.00018914,2]
[363698677,1748823036081,-160.0,0.00018914,2]
[363698678,1748823036096,-630.73674696,0.00018961,2]
[363698679,1748823036105,-1400.0,0.00018971,2]
[363698680,1748823036115,-500.0,0.00019074,2]
[363698681,1748823036124,-621.05275753,0.00019079,2]
[363698682,1748823036134,-500.0,0.00019079,2]
[363698683,1748823036144,-776.52,0.00019089,2]
[363698684,1748823036153,-430.0,0.00019089,2]
[363698685,1748823036164,-430.0,0.00019089,2]
[363698686,1748823036174,-430.0,0.00019089,2]
[363698687,1748823036183,-430.0,0.00019089,2]
[363698688,1748823036193,-431.25,0.00019089,2]
[363698689,1748823036203,-430.0,0.00019089,2]
[363698690,1748823036212,-430.0,0.00019089,2]
[363698691,1748823036222,-430.0,0.00019089,2]
[363698692,1748823036231,-430.0,0.00019089,2]
[363698693,1748823036241,-430.0,0.00019089,2]
[363698694,1748823036250,-430.0,0.00019089,2]
[363698695,1748823036260,-430.0,0.00019089,2]
[363698696,1748823036270,-430.0,0.00019089,2]
[363698697,1748823036280,-430.0,0.00019089,2]
[363698698,1748823036289,-430.0,0.00019089,2]
[363698699,1748823036298,-977.45,0.00019089,2]
[363698700,1748823036308,-430.0,0.00019089,2]
[363698701,1748823036317,-430.0,0.00019089,2]
[363698702,1748823036326,-430.0,0.00019089,2]
[363698703,1748823036338,-430.0,0.00019089,2]
[363698704,1748823036349,-430.0,0.00019089,2]
[363698705,1748823036358,-430.0,0.0001909,2]
[363698706,1748823036368,-430.0,0.0001909,2]
[363698707,1748823036378,-430.0,0.0001909,2]
[363698708,1748823036388,-430.0,0.0001909,2]
[363698709,1748823036397,-430.0,0.0001909,2]
[363698710,1748823036410,-430.0,0.0001909,2]
[363698711,1748823036420,-430.0,0.0001909,2]
[363698712,1748823036429,-430.0,0.0001909,2]
[363698713,1748823036439,-430.0,0.0001909,2]
[363698714,1748823036450,-430.0,0.0001909,2]
[363698715,1748823036459,-430.0,0.0001909,2]
[363698716,1748823036469,-430.0,0.0001909,2]
[363698717,1748823036479,-963.95,0.0001909,2]
[363698718,1748823036489,-430.0,0.0001909,2]
[363698719,1748823036499,-567.47,0.0001909,2]
[363698720,1748823036510,-430.0,0.0001909,2]
[363698721,1748823036520,-430.0,0.0001909,2]
[363698722,1748823036530,-430.0,0.0001909,2]
[363698723,1748823036540,-430.0,0.0001909,2]
[363698724,1748823036550,-430.0,0.00019162,2]
[363698725,1748823036560,-700.17,0.00019162,2]
[363698726,1748823036570,-740.97,0.00019162,2]
[363698727,1748823036579,-698.97,0.00019162,2]
[363698728,1748823036592,-1125.89,0.00019162,2]
[363698729,1748823036602,-812.58,0.00019162,2]
[363698730,1748823036611,-500.0,0.00019178,2]
[363698731,1748823036620,-500.0,0.00019178,2]
[363698732,1748823036630,-173.899305,0.00019178,2]
[363698733,1748823036639,-500.0,0.00019196,2]
[363698734,1748823036649,-396.94184363,0.00019252,2]
[363698735,1748823036659,-500.0,0.00019252,2]
[363698736,1748823036668,-1000.0,0.00019266,2]
[363698737,1748823036677,-1000.0,0.00019266,2]
[363698738,1748823036686,-329.74251551,0.00019312,2]
[363698739,1748823036694,-500.02250992,0.00019352,2]
[363698740,1748823036703,-500.0,0.00019352,2]
[363698741,1748823036714,-776.52,0.00019363,2]
[363698742,1748823036724,-430.0,0.00019363,2]
[363698743,1748823036733,-431.25,0.00019363,2]
[363698744,1748823036743,-291.0,0.00019363,2]
[363698745,1748823036753,-430.0,0.00019363,2]
[363698746,1748823036762,-430.0,0.00019363,2]
[363698747,1748823036772,-430.0,0.00019363,2]
[363698748,1748823036781,-430.0,0.00019363,2]
[363698749,1748823036791,-977.45,0.00019363,2]
[363698750,1748823036800,-430.0,0.00019363,2]
[363698751,1748823036810,-555.76,0.00019363,2]
[363698752,1748823036821,-430.0,0.00019363,2]
[363698753,1748823036830,-430.0,0.00019363,2]
[363698754,1748823036842,-430.0,0.00019363,2]
[363698755,1748823036852,-430.0,0.00019364,2]
[363698756,1748823036862,-430.0,0.00019364,2]
[363698757,1748823036871,-430.0,0.00019364,2]
[363698758,1748823036881,-430.0,0.00019364,2]
[363698759,1748823036890,-430.0,0.00019364,2]
[363698760,1748823036899,-430.0,0.00019364,2]
[363698761,1748823036909,-430.0,0.00019364,2]
[363698762,1748823036919,-551.14,0.00019364,2]
[363698763,1748823036929,-963.95,0.00019364,2]
[363698764,1748823036938,-430.0,0.00019364,2]
[363698765,1748823036948,-567.47,0.00019364,2]
[363698766,1748823036958,-430.0,0.00019364,2]
[363698767,1748823036967,-430.0,0.00019364,2]
[363698768,1748823036976,-430.0,0.00019364,2]
[363698769,1748823036986,-1000.0,0.00019375,2]
[363698770,1748823036995,-430.0,0.00019436,2]
[363698771,1748823037005,-700.17,0.00019436,2]
[363698772,1748823037015,-740.97,0.00019436,2]
[363698773,1748823037024,-698.97,0.00019436,2]
[363698774,1748823037034,-1125.89,0.00019436,2]
[363698775,1748823037043,-812.58,0.00019436,2]
[363698776,1748823037053,-150.25210295,0.00019516,2]
[363698777,1748823037063,-210.8,0.00019552,2]
[363698778,1748823037073,-210.8,0.00019552,2]
[363698779,1748823037082,-210.8,0.00019552,2]
[363698780,1748823037095,-210.8,0.00019552,2]
[363698781,1748823037105,-210.8,0.00019552,2]
[363698782,1748823037115,-210.8,0.00019552,2]
[363698783,1748823037125,-210.8,0.00019552,2]
[363698784,1748823037134,-210.8,0.00019552,2]
[363698785,1748823037145,-210.8,0.00019552,2]
[363698786,1748823037155,-270.129,0.00019594,2]
[363698787,1748823037165,-1000.0,0.00019622,2]
[363698788,1748823037281,-1000.0,0.00019627,2]
[363698789,1748823037292,-776.52,0.00019637,2]
[363698790,1748823037302,-430.0,0.00019637,2]
[363698791,1748823037311,-431.25,0.00019637,2]
[363698792,1748823037322,-430.0,0.00019637,2]
[363698793,1748823037333,-430.0,0.00019637,2]
[363698794,1748823037343,-977.45,0.00019637,2]
[363698795,1748823037354,-530.45,0.00019637,2]
[363698796,1748823037364,-430.0,0.00019637,2]
[363698797,1748823037374,-430.0,0.00019638,2]
[363698798,1748823037383,-430.0,0.00019638,2]
[363698799,1748823037393,-530.25,0.00019638,2]
[363698800,1748823037403,-430.0,0.00019638,2]
[363698801,1748823037414,-430.0,0.00019638,2]
[363698802,1748823037423,-963.95,0.00019638,2]
[363698803,1748823037433,-567.47,0.00019638,2]
[363698804,1748823037442,-430.0,0.00019638,2]
[363698805,1748823037453,-430.0,0.0001971,2]
[363698806,1748823037463,-700.17,0.0001971,2]
[363698807,1748823037473,-740.97,0.0001971,2]
[363698808,1748823037483,-698.97,0.0001971,2]
[363698809,1748823037493,-1125.89,0.0001971,2]
[363698810,1748823037503,-812.58,0.0001971,2]
[363698811,1748823037512,-500.0,0.00019744,2]
[363698812,1748823037522,-2082.78383886,0.00019757,2]
[363698813,1748823037533,-500.0,0.000198,2]
[363698814,1748823037543,-500.0,0.000199,2]
[363698815,1748823037552,-776.52,0.00019911,2]
[363698816,1748823037562,-430.0,0.00019911,2]
[363698817,1748823037572,-431.25,0.00019911,2]
[363698818,1748823037581,-430.0,0.00019911,2]
[363698819,1748823037592,-430.0,0.00019911,2]
[363698820,1748823037602,-977.45,0.00019911,2]
[363698821,1748823037611,-430.0,0.00019911,2]
[363698823,1748823037622,-430.0,0.00019912,2]
[363698824,1748823037631,-430.0,0.00019912,2]
[363698825,1748823037640,-430.0,0.00019912,2]
[363698827,1748823037651,-430.0,0.00019912,2]
[363698829,1748823037660,-963.95,0.00019912,2]
[363698831,1748823037670,-567.47,0.00019912,2]
[363698834,1748823037680,-430.0,0.00019912,2]
[363698835,1748823037689,-430.0,0.00019984,2]
[363698837,1748823037698,-700.17,0.00019984,2]
[363698838,1748823037707,-740.97,0.00019984,2]
[363698840,1748823037717,-698.97,0.00019984,2]
[363698842,1748823037727,-1125.89,0.00019984,2]
[363698844,1748823037737,-812.58,0.00019984,2]
[363698846,1748823037746,-1400.0,0.00020067,2]
[363698847,1748823037756,-587.0,0.00020134,2]
[363698849,1748823037766,-776.52,0.00020185,2]
[363698851,1748823037775,-457.9,0.00020185,2]
[363698853,1748823037785,-431.25,0.00020185,2]
[363698855,1748823037794,-430.0,0.00020185,2]
[363698857,1748823037804,-430.0,0.00020185,2]
[363698859,1748823037814,-977.45,0.00020185,2]
[363698861,1748823037823,-430.0,0.00020185,2]
[363698862,1748823037833,-430.0,0.00020186,2]
[363698863,1748823037844,-430.0,0.00020186,2]
[363698864,1748823037854,-430.0,0.00020186,2]
[363698865,1748823037864,-430.0,0.00020186,2]
[363698866,1748823037874,-963.95,0.00020186,2]
[363698867,1748823037883,-567.47,0.00020186,2]
[363698868,1748823037893,-430.0,0.00020186,2]
[363698869,1748823037902,-254.050829,0.00020187,2]
[363698870,1748823037912,-430.0,0.00020258,2]
[363698871,1748823037922,-700.17,0.00020258,2]
[363698872,1748823037932,-740.97,0.00020258,2]
[363698873,1748823037942,-698.97,0.00020258,2]
[363698874,1748823037952,-1125.89,0.00020258,2]
[363698875,1748823037962,-812.58,0.00020258,2]
[363698876,1748823037971,-150.25210295,0.00020374,2]
[363698877,1748823037980,-1665.33,0.00020419,2]
[363698878,1748823037990,-776.52,0.00020459,2]
[363698879,1748823038001,-431.25,0.00020459,2]
[363698880,1748823038010,-382.45,0.00020459,2]
[363698882,1748823038020,-430.0,0.00020459,2]
[363698884,1748823038030,-977.45,0.00020459,2]
[363698885,1748823038040,-430.0,0.00020459,2]
[363698886,1748823038050,-430.0,0.0002046,2]
[363698887,1748823038059,-430.0,0.0002046,2]
[363698888,1748823038069,-430.0,0.0002046,2]
[363698889,1748823038079,-430.0,0.0002046,2]
[363698890,1748823038091,-963.95,0.0002046,2]
[363698891,1748823038102,-567.47,0.0002046,2]
[363698892,1748823038111,-430.0,0.0002046,2]
[363698893,1748823038121,-430.0,0.00020532,2]
[363698894,1748823038131,-700.17,0.00020532,2]
[363698895,1748823038140,-740.97,0.00020532,2]
[363698896,1748823038150,-698.97,0.00020532,2]
[363698897,1748823038160,-1125.89,0.00020532,2]
[363698898,1748823038170,-812.58,0.00020532,2]
[363698899,1748823038180,-2352.86,0.000206,2]
[363698900,1748823038191,-286.74,0.000207,2]
[363698901,1748823038200,-399.31,0.000207,2]
[363698902,1748823038210,-776.52,0.00020733,2]
[363698903,1748823038220,-431.25,0.00020733,2]
[363698904,1748823038230,-430.0,0.00020733,2]
[363698905,1748823038239,-977.45,0.00020733,2]
[363698906,1748823038249,-430.0,0.00020733,2]
[363698907,1748823038258,-430.0,0.00020734,2]
[363698908,1748823038268,-430.0,0.00020734,2]
[363698909,1748823038278,-430.0,0.00020734,2]
[363698910,1748823038288,-430.0,0.00020734,2]
[363698911,1748823038297,-963.95,0.00020734,2]
[363698912,1748823038307,-567.47,0.00020734,2]
[363698913,1748823038316,-221.42128166,0.00020734,2]
[363698914,1748823039010,-430.0,0.0001697,2]
[363698915,1748823039023,-430.0,0.00017244,2]
[363698916,1748823039033,-430.0,0.00017518,2]
[363698917,1748823039043,-430.0,0.00017792,2]
[363698918,1748823039054,-430.0,0.00018066,2]
[363698919,1748823039064,-621.81377739,0.00018267,2]
[363698920,1748823039075,-500.0,0.00018267,2]
[363698921,1748823039084,-621.81377739,0.00018267,2]
[363698922,1748823039097,-500.0,0.00018267,2]
[363698923,1748823039107,-621.81377739,0.00018267,2]
[363698924,1748823039116,-621.81377739,0.00018267,2]
[363698925,1748823039126,-621.81377739,0.00018267,2]
[363698926,1748823039136,-500.0,0.00018267,2]
[363698927,1748823039145,-621.81377739,0.00018267,2]
[363698928,1748823039155,-621.81377739,0.00018267,2]
[363698929,1748823039164,-621.81377739,0.00018267,2]
[363698930,1748823039176,-621.81377739,0.00018267,2]
[363698931,1748823039187,-621.81377739,0.00018267,2]
[363698932,1748823039196,-621.81377739,0.00018267,2]
[363698933,1748823039206,-430.0,0.0001834,2]
[363698934,1748823039216,-500.0,0.00019178,2]
[363698935,1748823039226,-500.0,0.00019178,2]
[363698936,1748823039238,-500.0,0.00019178,2]
[363698937,1748823039248,-500.0,0.00019178,2]
[363698938,1748823039257,-500.0,0.00019178,2]
[363698939,1748823039266,-212.80060342,0.0002059,3]
[363698940,1748823039276,-208.57871834,0.00020734,2]
[363698941,1748823039286,-430.0,0.00020806,2]
[363698942,1748823039296,-700.17,0.00020806,2]
[363698943,1748823039307,-740.97,0.00020806,2]
[363698944,1748823039316,-698.97,0.00020806,2]
[363698945,1748823039326,-1125.89,0.00020806,2]
[363698946,1748823039336,-812.58,0.00020806,2]
[363698947,1748823039346,-3000.0,0.00021,2]
[363698948,1748823039356,-151.0,0.00021,4]
[363698949,1748823039366,-36021.41649,0.00021006,2]
[363698950,1748823039376,-431.25,0.00021007,2]
[363698951,1748823039386,-430.0,0.00021007,2]
[363698952,1748823039396,-977.45,0.00021007,2]
[363698953,1748823039406,-430.0,0.00021007,2]
[363698954,1748823039416,-430.0,0.00021008,2]
[363698955,1748823039426,-303.04,0.00021008,2]
[363698956,1748823039436,-430.0,0.00021008,2]
[363698957,1748823039447,-430.0,0.00021008,2]
[363698958,1748823039457,-963.95,0.00021008,2]
[363698959,1748823039469,-567.47,0.00021008,2]
[363698960,1748823039486,-164.92,0.00021008,2]
[363698961,1748823039496,-3000.0,0.0002101,2]
[363698962,1748823039506,-3000.0,0.0002102,2]
[363698963,1748823039516,-3000.0,0.0002103,2]
[363698964,1748823039527,-3000.0,0.0002104,2]
[363698965,1748823039537,-3000.0,0.0002105,2]
[363698966,1748823039546,-3000.0,0.0002106,2]
[363698967,1748823039556,-3000.0,0.0002107,2]
[363698968,1748823039566,-2082.78383886,0.00021071,2]
[363698969,1748823039575,-3000.0,0.0002108,2]
[363698970,1748823039585,-430.0,0.0002108,2]
[363698971,1748823039598,-700.17,0.0002108,2]
[363698972,1748823039608,-740.97,0.0002108,2]
[363698973,1748823039617,-698.97,0.0002108,2]
[363698974,1748823039627,-1125.89,0.0002108,2]
[363698975,1748823039637,-812.58,0.0002108,2]
[363698976,1748823039647,-3000.0,0.0002109,2]
[363698977,1748823039657,-3000.0,0.000211,2]
[363698978,1748823039667,-3000.0,0.0002111,2]
[363698979,1748823039677,-3000.0,0.0002112,2]
[363698980,1748823039686,-11820.10450435,0.0002113,3]
[363698981,1748823039696,-29546.35048832,0.0002113,2]
[363698982,1748823039706,-3000.0,0.0002113,2]
[363698983,1748823039716,-314.88098828,0.0002113,3]
[363698984,1748823039726,-3000.0,0.0002114,2]
[363698985,1748823039735,-5517.637473,0.0002115,2]
[363698986,1748823039745,-1400.0,0.00021163,2]
[363698987,1748823039755,-500.0,0.00021173,2]
[363698989,1748823039765,-500.0,0.00021173,2]
[363698991,1748823039775,-500.42226515,0.00021173,2]
[363698993,1748823039785,-500.0,0.00021173,2]
[363698994,1748823039795,-500.0,0.00021173,2]
[363698996,1748823039805,-501.00855688,0.00021173,2]
[363698998,1748823039814,-500.0,0.00021173,2]
[363699000,1748823039823,-500.0,0.00021173,2]
[363699002,1748823039833,-500.0,0.00021173,2]
[363699003,1748823039846,-320.1009062,0.00021173,2]
[363699004,1748823039856,-578.41688806,0.00021173,2]
[363699005,1748823039865,-19047.58,0.000212,2]
[363699006,1748823039875,-150.25210295,0.00021232,2]
[363699007,1748823039885,-431.25,0.00021281,2]
[363699008,1748823039894,-430.0,0.00021281,2]
[363699009,1748823039903,-977.45,0.00021281,2]
[363699010,1748823039913,-430.0,0.00021281,2]
[363699011,1748823039923,-430.0,0.00021282,2]
[363699012,1748823039933,-430.0,0.00021282,2]
[363699013,1748823039942,-430.0,0.00021282,2]
[363699014,1748823039951,-963.95,0.00021282,2]
[363699016,1748823040068,-567.47,0.00021282,2]
[363699018,1748823040079,-430.0,0.00021354,2]
[363699020,1748823040092,-700.17,0.00021354,2]
[363699022,1748823040104,-740.97,0.00021354,2]
[363699024,1748823040114,-698.97,0.00021354,2]
[363699026,1748823040123,-1125.89,0.00021354,2]
[363699028,1748823040132,-812.58,0.00021354,2]
[363699030,1748823040142,-431.25,0.00021555,2]
[363699032,1748823040151,-430.0,0.00021555,2]
[363699034,1748823040161,-977.45,0.00021555,2]
[363699036,1748823040171,-430.0,0.00021555,2]
[363699038,1748823040182,-430.0,0.00021556,2]
[363699040,1748823040192,-430.0,0.00021556,2]
[363699042,1748823040202,-430.0,0.00021556,2]
[363699044,1748823040212,-963.95,0.00021556,2]
[363699046,1748823040221,-567.47,0.00021556,2]
[363699048,1748823040231,-151.0,0.0002156,2]